[Event "EYCC Girls-U12 2019"]
[Site "Bratislava"]
[Date "2019.08.08"]
[Round "7.18"]
[White "Helliesen, Lykke-Merlot"]
[Black "Orian, Noga"]
[Result "0-1"]
[ECO "D60"]
[WhiteElo "1505"]
[BlackElo "1628"]
[Annotator "NA"]
[PlyCount "112"]
[EventDate "2019.08.02"]
[EventType "swiss"]
[EventCountry "SVK"]
[SourceTitle "playchess.com"]
[Source "ChessBase"]
[SourceQuality "1"]
[TimeControl "40/5400+30:1800+30"]

1. d4 {[%emt 0:00:00]} d5 {[%emt 0:00:00]} 2. c4 {[%emt 0:00:00]} e6 {[%emt 0:00:00]} 3. Nc3 {[%emt 0:00:00]} Be7 {[%emt 0:00:00]} 4. Nf3 {[%emt 0:01:28]} Nf6 {[%emt 0:00:07]} 5. Bg5 {[%emt 0:02:20]} O-O {[%emt 0:00:14]} 6. e3 {[%emt 0:00:27]} Nbd7 {[%emt 0:00:58]} 7. Bd3 {[%emt 0:01:14]} dxc4 {[%emt 0:00:57]} 8. Bxc4 {[%emt 0:00:22]} h6 {[%emt 0:00:28]} 9. Bh4 {[%emt 0:02:12]} Re8 {[%emt 0:01:37]} 10. O-O {[%emt 0:01:44]} c6 {[%emt 0:03:05]} 11. Qc2 Nd5 {[%emt 0:02:09]} 12. Bxe7 {[%emt 0:08:07]} Qxe7 {[%emt 0:00:12]} 13. e4 {[%emt 0:04:39]} Nxc3 {[%emt 0:01:19]} 14. bxc3 {[%emt 0:01:36]} c5 {[%emt 0:08:06]} 15. Rad1 {[%emt 0:04:46]} cxd4 {[%emt 0:01:12]} 16. cxd4 {[%emt 0:00:23]} Nb6 {[%emt 0:08:19]} 17. Bb3 {[%emt 0:02:25]} Bd7 {[%emt 0:02:17]} 18. Rfe1 {[%emt 0:06:01]} Rac8 {[%emt 0:00:58]} 19. Qd3 {[%emt 0:01:59]} Ba4 {[%emt 0:05:43]} 20. Rc1 {[%emt 0:03:31]} Rxc1 {[%emt 0:01:45]} 21. Rxc1 {[%emt 0:00:15]} Bxb3 {[%emt 0:00:12]} 22. Qxb3 {[%emt 0:00:20]} Rc8 {[%emt 0:04:54]} 23. Rxc8+ {[%emt 0:01:16]} Nxc8 {[%emt 0:00:02]} 24. h3 {[%emt 0:01:04]} Qc7 {[%emt 0:01:15]} 25. Kf1 {[%emt 0:04:42]} Nd6 {[%emt 0:06:13]} 26. d5 {[%emt 0:07:31]} exd5 {[%emt 0:00:52]} 27. exd5 {[%emt 0:01:54]} Qc4+ {[%emt 0:02:09]} 28. Qxc4 {[%emt 0:04:05]} Nxc4 {[%emt 0:00:04]} 29. Ke2 {[%emt 0:00:17]} Nb6 {[%emt 0:09:19]} 30. d6 {[%emt 0:01:05]} Kf8 {[%emt 0:00:12]} 31. Kd3 {[%emt 0:00:47]} Ke8 {[%emt 0:00:37]} 32. Kd4 {[%emt 0:01:57]} Kd7 {[%emt 0:01:01]} 33. Kc5 {[%emt 0:02:15]} f6 {[%emt 0:14:24]} 34. Nd4 {[%emt 0:09:43]} g6 {[%emt 0:01:35]} 35. Nf3 {[%emt 0:07:06]} Na4+ {[%emt 0:07:21]} 36. Kb4 {[%emt 0:02:08]} Nb2 {[%emt 0:01:01]} 37. Ne1 {[%emt 0:04:05]} Kxd6 {[%emt 0:03:16]} 38. Kb3 {[%emt 0:00:51]} Nd1 {[%emt 0:00:12]} 39. Nd3 {[%emt 0:01:14]} Kd5 {[%emt 0:00:48]} 40. f3 {[%emt 0:00:00]} g5 {[%emt 0:00:00]} 41. Nb4+ {[%emt 0:06:07]} Kc5 {[%emt 0:07:10]} 42. Nc2 {[%emt 0:04:25]} h5 {[%emt 0:03:05]} 43. a3 {[%emt 0:02:10]} f5 {[%emt 0:03:14]} 44. g3 {[%emt 0:04:23]} Nf2 {[%emt 0:04:57]} 45. h4 {[%emt 0:01:46]} g4 {[%emt 0:01:25]} 46. fxg4 {[%emt 0:01:13]} fxg4 {[%emt 0:00:13]} 47. Ne3 {[%emt 0:00:50]} Ne4 {[%emt 0:00:21]} 48. Nf1 {[%emt 0:02:24]} Kd4 {[%emt 0:05:13]} 49. Kc2 {[%emt 0:00:36]} b5 {[%emt 0:03:30]} 50. Kd1 {[%emt 0:01:52]} Kd3 {[%emt 0:01:01]} 51. Ke1 {[%emt 0:00:40]} a5 {[%emt 0:00:27]} 52. Kd1 {[%emt 0:00:19]} b4 {[%emt 0:00:33]} 53. axb4 {[%emt 0:01:16]} axb4 {[%emt 0:00:15]} 54. Kc1 {[%emt 0:01:53]} Ke2 {[%emt 0:00:26]} 55. Nh2 {[%emt 0:00:10]} Nxg3 {[%emt 0:00:28]} 56. Kb2 {[%emt 0:00:20]} Nf5 {[%emt 0:00:46]} 0-1

[Event "EYCC Girls-U12 2019"]
[Site "Bratislava"]
[Date "2019.08.08"]
[Round "7.19"]
[White "Korovina, Yana"]
[Black "Dubovik, Maria"]
[Result "1/2-1/2"]
[ECO "D05"]
[WhiteElo "1602"]
[BlackElo "1504"]
[Annotator "NA"]
[PlyCount "84"]
[EventDate "2019.08.02"]
[EventType "swiss"]
[EventCountry "SVK"]
[SourceTitle "playchess.com"]
[Source "ChessBase"]
[SourceQuality "1"]
[TimeControl "40/5400+30:1800+30"]

1. d4 {[%emt 0:00:00]} d5 {[%emt 0:00:00]} 2. e3 {[%emt 0:00:00]} Nf6 {[%emt 0:00:00]} 3. Bd3 {[%emt 0:00:00]} e6 {[%emt 0:00:08]} 4. f4 {[%emt 0:00:19]} c5 {[%emt 0:00:25]} 5. c3 {[%emt 0:00:09]} Nc6 {[%emt 0:00:22]} 6. Nf3 {[%emt 0:00:44]} Be7 {[%emt 0:01:23]} 7. Nbd2 {[%emt 0:00:33]} cxd4 {[%emt 0:00:38]} 8. exd4 {[%emt 0:01:41]} O-O {[%emt 0:02:17]} 9. O-O {[%emt 0:00:28]} Ng4 {[%emt 0:01:59]} 10. Qe2 {[%emt 0:02:43]} f5 {[%emt 0:04:04]} 11. Ne5 {[%emt 0:06:39]} Nf6 {[%emt 0:04:42]} 12. Ndf3 {[%emt 0:06:02]} Ne4 {[%emt 0:00:47]} 13. Bd2 {[%emt 0:07:50]} Bf6 {[%emt 0:13:36]} 14. Rae1 {[%emt 0:04:23]} Nxe5 {[%emt 0:03:34]} 15. Nxe5 {[%emt 0:01:25]} Bh4 {[%emt 0:17:21]} 16. Rd1 {[%emt 0:04:39]} Bd7 {[%emt 0:06:44]} 17. Rf3 {[%emt 0:10:55]} Be8 {[%emt 0:00:30]} 18. Bxe4 {[%emt 0:00:43]} dxe4 {[%emt 0:09:12]} 19. Rh3 {[%emt 0:01:57]} Bf6 {[%emt 0:06:33]} 20. Rg3 {[%emt 0:08:43]} a6 {[%emt 0:02:39]} 21. Qc4 {[%emt 0:07:32]} Qd6 {[%emt 0:05:16]} 22. Qe2 {[%emt 0:03:37]} Rd8 {[%emt 0:00:48]} 23. Bc1 {[%emt 0:07:04]} Qc7 {[%emt 0:05:19]} 24. Rh3 {[%emt 0:03:07]} Bxe5 {[%emt 0:02:43]} 25. fxe5 {[%emt 0:02:54]} Bg6 {[%emt 0:01:36]} 26. Bf4 {[%emt 0:00:44]} Qb6 {[%emt 0:01:05]} 27. Qc2 {[%emt 0:02:56]} Rc8 {[%emt 0:02:04]} 28. Qb3 {[%emt 0:00:48]} Qxb3 {[%emt 0:00:26]} 29. axb3 {[%emt 0:00:07]} Rfd8 {[%emt 0:00:41]} 30. Re3 {[%emt 0:00:36]} h6 {[%emt 0:00:48]} 31. h4 {[%emt 0:01:30]} b5 {[%emt 0:00:36]} 32. Ree1 {[%emt 0:01:26]} Kf7 {[%emt 0:01:01]} 33. Kf2 {[%emt 0:00:48]} Ke7 {[%emt 0:00:47]} 34. Be3 {[%emt 0:01:08]} Be8 {[%emt 0:01:30]} 35. Bf4 {[%emt 0:00:55]} Bc6 {[%emt 0:00:46]} 36. Ra1 {[%emt 0:00:40]} Ra8 {[%emt 0:00:26]} 37. b4 {[%emt 0:01:32]} Rg8 {[%emt 0:00:28]} 38. h5 {[%emt 0:01:13]} Rgc8 {[%emt 0:00:56]} 39. Ke3 {[%emt 0:00:10]} Be8 {[%emt 0:02:46]} 40. Rh1 {[%emt 0:00:00]} Bc6 {[%emt 0:00:00]} 41. Rhe1 {[%emt 0:02:33]} Bd5 {[%emt 0:04:05]} 42. Ra3 {[%emt 0:01:21]} Bb7 {[%emt 0:02:00]} 1/2-1/2

[Event "EYCC Girls-U12 2019"]
[Site "Bratislava"]
[Date "2019.08.08"]
[Round "7.20"]
[White "Norman, Kseniya"]
[Black "Putinceva, Marina"]
[Result "1-0"]
[ECO "C75"]
[WhiteElo "1532"]
[BlackElo "1476"]
[Annotator "NA"]
[PlyCount "105"]
[EventDate "2019.08.02"]
[EventType "swiss"]
[EventCountry "SVK"]
[SourceTitle "playchess.com"]
[Source "ChessBase"]
[SourceQuality "1"]
[TimeControl "40/5400+30:1800+30"]

1. e4 {[%emt 0:00:00]} e5 {[%emt 0:00:00]} 2. Nf3 {[%emt 0:00:00]} Nc6 {[%emt 0:00:00]} 3. Bb5 {[%emt 0:00:00]} a6 {[%emt 0:00:00]} 4. Ba4 {[%emt 0:00:00]} d6 {[%emt 0:00:00]} 5. c3 {[%emt 0:00:35]} Bd7 {[%emt 0:00:51]} 6. O-O {[%emt 0:01:14]} g6 {[%emt 0:01:35]} 7. d4 {[%emt 0:01:12]} Bg7 {[%emt 0:03:13]} 8. Bg5 {[%emt 0:04:55]} f6 {[%emt 0:07:58]} 9. Be3 {[%emt 0:00:55]} Nh6 {[%emt 0:04:00]} 10. h3 {[%emt 0:03:06]} Nf7 {[%emt 0:03:27]} 11. d5 Ne7 {[%emt 0:02:15]} 12. Bxd7+ {[%emt 0:04:18]} Qxd7 {[%emt 0:00:17]} 13. Nfd2 {[%emt 0:01:33]} O-O {[%emt 0:03:49]} 14. c4 {[%emt 0:01:23]} f5 {[%emt 0:06:50]} 15. f3 {[%emt 0:01:36]} f4 {[%emt 0:09:12]} 16. Bf2 {[%emt 0:00:11]} b6 {[%emt 0:02:45]} 17. b4 {[%emt 0:03:43]} g5 {[%emt 0:17:34]} 18. Nc3 {[%emt 0:03:20]} a5 {[%emt 0:00:58]} 19. a3 {[%emt 0:01:53]} axb4 {[%emt 0:04:21]} 20. axb4 {[%emt 0:00:08]} h5 {[%emt 0:02:35]} 21. Qe2 {[%emt 0:04:09]} Nh6 {[%emt 0:04:49]} 22. c5 {[%emt 0:02:18]} bxc5 {[%emt 0:00:49]} 23. bxc5 {[%emt 0:00:05]} c6 {[%emt 0:02:08]} 24. Rxa8 {[%emt 0:01:13]} Rxa8 {[%emt 0:00:07]} 25. Nc4 {[%emt 0:00:26]} cxd5 {[%emt 0:02:29]} 26. Nb6 {[%emt 0:00:29]} Qd8 {[%emt 0:02:02]} 27. Nxa8 {[%emt 0:00:14]} Qxa8 {[%emt 0:00:01]} 28. cxd6 {[%emt 0:00:27]} Ng6 {[%emt 0:01:02]} 29. Nxd5 {[%emt 0:01:26]} Qd8 {[%emt 0:00:49]} 30. Bc5 {[%emt 0:02:15]} Bf8 {[%emt 0:02:19]} 31. Qa6 {[%emt 0:02:09]} Nf7 {[%emt 0:06:22]} 32. Rd1 {[%emt 0:03:32]} Nxd6 {[%emt 0:02:31]} 33. Bxd6 {[%emt 0:00:12]} Bxd6 {[%emt 0:00:14]} 34. Nf6+ {[%emt 0:00:18]} Qxf6 {[%emt 0:01:21]} 35. Rxd6 {[%emt 0:00:07]} Qe7 {[%emt 0:00:49]} 36. Rxg6+ {[%emt 0:00:12]} Kf7 {[%emt 0:00:21]} 37. Rc6 {[%emt 0:00:57]} g4 {[%emt 0:02:18]} 38. Qc4+ {[%emt 0:00:11]} Kg7 {[%emt 0:01:55]} 39. Rc7 {[%emt 0:00:07]} Kf6 {[%emt 0:01:56]} 40. Rxe7 {[%emt 0:00:00]} Kxe7 {[%emt 0:00:00]} 41. fxg4 {[%emt 0:00:34]} hxg4 {[%emt 0:02:57]} 42. hxg4 {[%emt 0:01:02]} f3 {[%emt 0:01:09]} 43. gxf3 {[%emt 0:00:08]} Kf6 {[%emt 0:00:13]} 44. Qg8 {[%emt 0:00:11]} Ke7 {[%emt 0:00:17]} 45. g5 {[%emt 0:00:06]} Kd6 {[%emt 0:00:13]} 46. g6 {[%emt 0:00:11]} Ke7 {[%emt 0:04:39]} 47. Qf7+ {[%emt 0:00:05]} Kd6 {[%emt 0:00:20]} 48. g7 {[%emt 0:00:01]} Kc5 {[%emt 0:00:07]} 49. g8=R {[%emt 0:00:11]} Kd4 {[%emt 0:00:18]} 50. Kf2 {[%emt 0:00:17]} Kc3 {[%emt 0:00:26]} 51. Qc7+ {[%emt 0:00:07]} Kb4 {[%emt 0:00:19]} 52. Rb8+ {[%emt 0:00:04]} Ka4 {[%emt 0:00:22]} 53. Qa7# {[%emt 0:00:05]} 1-0

[Event "EYCC Girls-U12 2019"]
[Site "Bratislava"]
[Date "2019.08.08"]
[Round "7.21"]
[White "Berezovsky, Fiorina"]
[Black "Salajan, Stefania"]
[Result "1/2-1/2"]
[ECO "B01"]
[WhiteElo "1591"]
[BlackElo "1482"]
[Annotator "NA"]
[PlyCount "138"]
[EventDate "2019.08.02"]
[EventType "swiss"]
[EventCountry "SVK"]
[SourceTitle "playchess.com"]
[Source "ChessBase"]
[SourceQuality "1"]
[TimeControl "40/5400+30:1800+30"]

1. e4 {[%emt 0:00:00]} d5 {[%emt 0:00:00]} 2. exd5 {[%emt 0:00:12]} Qxd5 {[%emt 0:00:00]} 3. Nc3 {[%emt 0:00:36]} Qd6 {[%emt 0:00:00]} 4. d4 {[%emt 0:01:04]} c6 {[%emt 0:00:03]} 5. Nf3 {[%emt 0:04:48]} Bg4 {[%emt 0:00:06]} 6. Be3 {[%emt 0:02:28]} Nf6 {[%emt 0:01:40]} 7. Be2 {[%emt 0:01:14]} Nbd7 {[%emt 0:01:38]} 8. O-O {[%emt 0:03:35]} e6 {[%emt 0:00:37]} 9. Qd2 {[%emt 0:02:01]} Qc7 {[%emt 0:01:07]} 10. h3 {[%emt 0:01:07]} Bh5 {[%emt 0:01:57]} 11. a3 {[%emt 0:03:23]} a5 {[%emt 0:05:06]} 12. Ng5 {[%emt 0:05:02]} Bxe2 {[%emt 0:01:19]} 13. Qxe2 {[%emt 0:03:10]} Be7 {[%emt 0:02:25]} 14. Nge4 {[%emt 0:00:55]} O-O {[%emt 0:02:04]} 15. g4 {[%emt 0:11:46]} Nd5 {[%emt 0:04:23]} 16. Nxd5 {[%emt 0:02:32]} exd5 {[%emt 0:01:09]} 17. Ng3 {[%emt 0:00:33]} Bd6 {[%emt 0:07:20]} 18. Nf5 {[%emt 0:03:19]} g6 {[%emt 0:03:54]} 19. Nxd6 {[%emt 0:02:19]} Qxd6 {[%emt 0:01:30]} 20. Qf3 {[%emt 0:04:27]} Nf6 {[%emt 0:11:53]} 21. Bf4 {[%emt 0:04:01]} Qe6 {[%emt 0:03:00]} 22. Rfe1 {[%emt 0:01:35]} Ne4 {[%emt 0:01:11]} 23. Bh6 {[%emt 0:03:11]} Rfe8 {[%emt 0:02:02]} 24. Qd3 {[%emt 0:02:05]} Qf6 {[%emt 0:04:32]} 25. f3 {[%emt 0:05:51]} Ng5 {[%emt 0:03:57]} 26. Bxg5 {[%emt 0:04:53]} Qxg5 {[%emt 0:00:05]} 27. Re2 {[%emt 0:01:56]} Qf4 {[%emt 0:04:06]} 28. Kg2 {[%emt 0:08:26]} Rxe2+ {[%emt 0:00:42]} 29. Qxe2 {[%emt 0:00:02]} Qxd4 {[%emt 0:00:12]} 30. c3 {[%emt 0:00:34]} Qf6 {[%emt 0:01:55]} 31. Re1 {[%emt 0:00:44]} Rd8 {[%emt 0:03:18]} 32. Qd2 {[%emt 0:04:36]} Kg7 {[%emt 0:07:30]} 33. g5 {[%emt 0:01:52]} Qf5 {[%emt 0:11:10]} 34. Qd4+ {[%emt 0:00:43]} Kg8 {[%emt 0:00:33]} 35. Qe3 {[%emt 0:03:15]} Qd7 {[%emt 0:05:44]} 36. h4 {[%emt 0:04:11]} d4 {[%emt 0:04:38]} 37. cxd4 {[%emt 0:01:15]} Qxd4 {[%emt 0:00:12]} 38. Qxd4 {[%emt 0:00:44]} Rxd4 {[%emt 0:00:04]} 39. Re8+ {[%emt 0:00:17]} Kg7 {[%emt 0:00:23]} 40. Kg3 {[%emt 0:00:00]} Rd2 {[%emt 0:00:00]} 41. Ra8 {[%emt 0:02:12]} b6 {[%emt 0:03:22]} 42. b4 {[%emt 0:03:23]} axb4 {[%emt 0:00:30]} 43. axb4 {[%emt 0:00:02]} Rd4 {[%emt 0:01:07]} 44. Rc8 {[%emt 0:00:32]} Rxb4 {[%emt 0:00:13]} 45. Rxc6 {[%emt 0:00:06]} Rb1 {[%emt 0:01:33]} 46. Rc8 {[%emt 0:01:15]} b5 {[%emt 0:00:42]} 47. Kf2 {[%emt 0:00:40]} b4 {[%emt 0:01:16]} 48. Rb8 {[%emt 0:00:10]} b3 {[%emt 0:00:38]} 49. Ke2 {[%emt 0:00:43]} b2 {[%emt 0:02:06]} 50. Kd2 {[%emt 0:00:40]} Rf1 {[%emt 0:02:44]} 51. Rxb2 {[%emt 0:00:42]} Rxf3 {[%emt 0:00:20]} 52. Rb4 {[%emt 0:00:49]} h6 {[%emt 0:02:00]} 53. Ke2 {[%emt 0:00:48]} Rf5 {[%emt 0:00:41]} 54. Rg4 {[%emt 0:00:42]} hxg5 {[%emt 0:01:37]} 55. hxg5 {[%emt 0:00:07]} f6 {[%emt 0:01:18]} 56. gxf6+ {[%emt 0:00:17]} Rxf6 {[%emt 0:00:07]} 57. Ke3 {[%emt 0:00:12]} Rf5 {[%emt 0:03:10]} 58. Ke4 {[%emt 0:00:34]} Kf6 {[%emt 0:01:47]} 59. Rf4 {[%emt 0:01:21]} Rxf4+ {[%emt 0:01:41]} 60. Kxf4 {[%emt 0:00:01]} g5+ {[%emt 0:00:46]} 61. Kg4 {[%emt 0:00:06]} Kg6 {[%emt 0:01:41]} 62. Kg3 {[%emt 0:00:10]} Kf5 {[%emt 0:00:03]} 63. Kf3 {[%emt 0:00:05]} g4+ {[%emt 0:00:08]} 64. Kg3 {[%emt 0:00:03]} Kg5 {[%emt 0:00:05]} 65. Kg2 {[%emt 0:00:04]} Kf4 {[%emt 0:00:12]} 66. Kf2 {[%emt 0:00:04]} g3+ {[%emt 0:00:03]} 67. Kg2 {[%emt 0:00:05]} Kg4 {[%emt 0:00:12]} 68. Kg1 {[%emt 0:00:04]} Kf3 {[%emt 0:00:11]} 69. Kf1 {[%emt 0:00:03]} g2+ {[%emt 0:00:10]} 1/2-1/2

[Event "EYCC Girls-U12 2019"]
[Site "Bratislava"]
[Date "2019.08.08"]
[Round "7.22"]
[White "Arora, Tashika"]
[Black "Novikova, Daria"]
[Result "1-0"]
[ECO "A40"]
[WhiteElo "1447"]
[BlackElo "1428"]
[Annotator "NA"]
[PlyCount "66"]
[EventDate "2019.08.02"]
[EventType "swiss"]
[EventCountry "SVK"]
[SourceTitle "playchess.com"]
[Source "ChessBase"]
[SourceQuality "1"]
[TimeControl "40/5400+30:1800+30"]

1. d4 {[%emt 0:00:00]} c6 {[%emt 0:00:00]} 2. Nf3 {[%emt 0:00:00]} d5 {[%emt 0:00:03]} 3. Bf4 {[%emt 0:00:00]} Bf5 {[%emt 0:00:10]} 4. e3 {[%emt 0:00:11]} e6 {[%emt 0:00:18]} 5. Bd3 {[%emt 0:03:44]} Bg6 {[%emt 0:01:54]} 6. O-O {[%emt 0:00:56]} Nf6 {[%emt 0:00:15]} 7. c4 {[%emt 0:00:57]} Bd6 {[%emt 0:00:28]} 8. Bxd6 Qxd6 {[%emt 0:04:12]} 9. Nc3 {[%emt 0:01:40]} Nbd7 {[%emt 0:00:45]} 10. cxd5 {[%emt 0:01:13]} cxd5 {[%emt 0:01:09]} 11. Rc1 {[%emt 0:03:02]} a6 {[%emt 0:00:08]} 12. Bxg6 {[%emt 0:07:29]} hxg6 {[%emt 0:00:42]} 13. h3 {[%emt 0:01:32]} Nh7 {[%emt 0:20:38]} 14. e4 {[%emt 0:07:33]} dxe4 {[%emt 0:02:26]} 15. Nxe4 {[%emt 0:00:12]} Qf4 {[%emt 0:00:11]} 16. Nc5 {[%emt 0:08:02]} Ndf6 {[%emt 0:18:33]} 17. Nxb7 {[%emt 0:08:19]} Ng4 {[%emt 0:11:33]} 18. g3 {[%emt 0:11:24]} Qb8 {[%emt 0:00:38]} 19. Qa4+ {[%emt 0:02:30]} Kf8 {[%emt 0:00:19]} 20. Qc6 {[%emt 0:05:40]} Ne3 {[%emt 0:02:12]} 21. Nc5 {[%emt 0:08:41]} Ke7 {[%emt 0:05:31]} 22. Qd7+ {[%emt 0:02:41]} Kf8 {[%emt 0:01:19]} 23. Ne5 {[%emt 0:02:23]} Ng5 {[%emt 0:01:36]} 24. Nxe6+ {[%emt 0:02:15]} fxe6 {[%emt 0:01:51]} 25. fxe3+ {[%emt 0:00:45]} Kg8 {[%emt 0:00:38]} 26. b3 {[%emt 0:04:39]} Rxh3 {[%emt 0:05:40]} 27. Kg2 {[%emt 0:00:45]} Qb4 {[%emt 0:02:11]} 28. Rc2 {[%emt 0:04:09]} Rf8 {[%emt 0:05:58]} 29. Rxf8+ {[%emt 0:00:31]} Qxf8 {[%emt 0:00:47]} 30. Rc8 {[%emt 0:00:36]} Qxc8 {[%emt 0:04:42]} 31. Qxc8+ {[%emt 0:00:06]} Kh7 {[%emt 0:00:06]} 32. Nf7 {[%emt 0:00:36]} Rxg3+ {[%emt 0:00:41]} 33. Kxg3 {[%emt 0:00:34]} Nxf7 {[%emt 0:00:09]} 1-0

[Event "EYCC Girls-U12 2019"]
[Site "Bratislava"]
[Date "2019.08.08"]
[Round "7.23"]
[White "Muradyan, Anahit"]
[Black "Shukurova, Aydan"]
[Result "1/2-1/2"]
[ECO "D27"]
[WhiteElo "1353"]
[BlackElo "1372"]
[Annotator "NA"]
[PlyCount "60"]
[EventDate "2019.08.02"]
[EventType "swiss"]
[EventCountry "SVK"]
[SourceTitle "playchess.com"]
[Source "ChessBase"]
[SourceQuality "1"]
[TimeControl "40/5400+30:1800+30"]

1. d4 {[%emt 0:00:00]} d5 {[%emt 0:00:13]} 2. c4 {[%emt 0:00:00]} dxc4 {[%emt 0:00:16]} 3. Nf3 {[%emt 0:00:01]} Nf6 {[%emt 0:00:27]} 4. e3 {[%emt 0:00:19]} e6 {[%emt 0:01:12]} 5. Bxc4 {[%emt 0:00:15]} c5 {[%emt 0:00:56]} 6. O-O {[%emt 0:01:46]} a6 {[%emt 0:00:32]} 7. a4 Nbd7 8. Nc3 {[%emt 0:04:31]} Be7 {[%emt 0:02:42]} 9. Qc2 {[%emt 0:04:02]} O-O {[%emt 0:09:28]} 10. Rd1 {[%emt 0:02:07]} Qc7 {[%emt 0:06:04]} 11. b3 {[%emt 0:12:45]} b6 {[%emt 0:03:50]} 12. Bb2 {[%emt 0:07:47]} Bb7 {[%emt 0:09:25]} 13. Be2 {[%emt 0:03:10]} Rfd8 {[%emt 0:02:18]} 14. Rac1 {[%emt 0:03:38]} Rac8 {[%emt 0:07:05]} 15. dxc5 {[%emt 0:05:33]} Bxc5 {[%emt 0:03:40]} 16. h3 {[%emt 0:08:45]} Qb8 {[%emt 0:06:03]} 17. Qb1 {[%emt 0:07:08]} Qa8 {[%emt 0:04:04]} 18. Rd2 {[%emt 0:05:26]} Bb4 {[%emt 0:02:56]} 19. Rd4 {[%emt 0:02:10]} Bc5 {[%emt 0:04:25]} 20. Rd2 {[%emt 0:00:32]} Bb4 {[%emt 0:01:22]} 21. Rd4 {[%emt 0:01:31]} Bc5 {[%emt 0:01:22]} 22. Rd2 {[%emt 0:00:42]} Bb4 {[%emt 0:01:54]} 23. Rd4 {[%emt 0:01:33]} Bc5 {[%emt 0:01:00]} 24. Rd2 Bb4 25. Rd4 Bxc3 26. Bxc3 Ne4 27. Qa1 Nxc3 28. Rxc3 Rxc3 29. Qxc3 Rc8 30. Qd2 Nf6 1/2-1/2

[Event "EYCC Girls-U12 2019"]
[Site "Bratislava"]
[Date "2019.08.08"]
[Round "7.24"]
[White "Dobsa, Emma"]
[Black "Budagova, Leyla"]
[Result "0-1"]
[ECO "B76"]
[WhiteElo "1325"]
[BlackElo "1442"]
[Annotator "NA"]
[PlyCount "46"]
[EventDate "2019.08.02"]
[EventType "swiss"]
[EventCountry "SVK"]
[SourceTitle "playchess.com"]
[Source "ChessBase"]
[SourceQuality "1"]
[TimeControl "40/5400+30:1800+30"]

1. e4 {[%emt 0:00:00]} c5 {[%emt 0:00:00]} 2. Nf3 {[%emt 0:00:00]} d6 {[%emt 0:00:00]} 3. d4 {[%emt 0:00:12]} cxd4 {[%emt 0:00:00]} 4. Nxd4 {[%emt 0:00:09]} Nf6 {[%emt 0:00:01]} 5. Nc3 {[%emt 0:00:08]} g6 {[%emt 0:00:08]} 6. Be3 {[%emt 0:00:44]} Bg7 {[%emt 0:00:06]} 7. f3 {[%emt 0:00:36]} O-O {[%emt 0:00:09]} 8. Qd2 {[%emt 0:00:05]} Nc6 {[%emt 0:00:20]} 9. O-O-O {[%emt 0:00:15]} Bd7 {[%emt 0:00:05]} 10. g4 {[%emt 0:00:16]} Ne5 {[%emt 0:00:21]} 11. Kb1 {[%emt 0:06:33]} Rc8 {[%emt 0:01:05]} 12. h4 {[%emt 0:01:15]} Qa5 {[%emt 0:03:40]} 13. Be2 {[%emt 0:03:13]} Nc4 {[%emt 0:05:09]} 14. Bxc4 {[%emt 0:02:23]} Rxc4 {[%emt 0:00:08]} 15. Nb3 {[%emt 0:01:16]} Qc7 {[%emt 0:09:58]} 16. h5 {[%emt 0:05:25]} a5 {[%emt 0:13:32]} 17. hxg6 {[%emt 0:02:54]} fxg6 {[%emt 0:00:50]} 18. Nd5 {[%emt 0:01:35]} Nxd5 {[%emt 0:11:28]} 19. Qxd5+ {[%emt 0:02:06]} Rf7 {[%emt 0:13:32]} 20. Rd2 {[%emt 0:03:16]} a4 {[%emt 0:03:56]} 21. Nc1 {[%emt 0:07:42]} Rb4 {[%emt 0:04:35]} 22. e5 {[%emt 0:15:56]} Bxe5 {[%emt 0:03:00]} 23. Nd3 {[%emt 0:12:48]} e6 {[%emt 0:01:45]} 0-1

[Event "EYCC Girls-U12 2019"]
[Site "Bratislava"]
[Date "2019.08.09"]
[Round "8.1"]
[White "Zhapova, Yana"]
[Black "Karaivanova, Petya"]
[Result "1-0"]
[ECO "C68"]
[WhiteElo "1809"]
[BlackElo "1792"]
[Annotator "NA"]
[PlyCount "63"]
[EventDate "2019.08.02"]
[EventType "swiss"]
[EventCountry "SVK"]
[SourceTitle "playchess.com"]
[Source "ChessBase"]
[SourceQuality "1"]
[TimeControl "40/5400+30:1800+30"]

1. e4 {[%emt 0:00:00]} e5 {[%emt 0:00:00]} 2. Nf3 {[%emt 0:00:00]} Nc6 {[%emt 0:00:00]} 3. Bb5 {[%emt 0:00:55]} a6 {[%emt 0:00:02]} 4. Bxc6 {[%emt 0:00:20]} dxc6 {[%emt 0:00:09]} 5. O-O {[%emt 0:01:14]} Bg4 {[%emt 0:00:59]} 6. d3 Qf6 {[%emt 0:04:22]} 7. Nbd2 {[%emt 0:06:37]} g5 {[%emt 0:06:52]} 8. b3 {[%emt 0:09:27]} Qg7 {[%emt 0:05:09]} 9. Bb2 {[%emt 0:03:49]} f6 {[%emt 0:04:09]} 10. d4 {[%emt 0:15:21]} exd4 {[%emt 0:09:40]} 11. Bxd4 {[%emt 0:00:52]} O-O-O {[%emt 0:01:21]} 12. Bc3 {[%emt 0:02:15]} Bd6 {[%emt 0:04:54]} 13. Qe1 {[%emt 0:05:21]} Bf4 {[%emt 0:09:08]} 14. e5 {[%emt 0:09:37]} Re8 {[%emt 0:08:56]} 15. Qe4 {[%emt 0:05:27]} f5 {[%emt 0:07:28]} 16. Qd4 {[%emt 0:09:58]} Re6 {[%emt 0:14:41]} 17. Qa7 {[%emt 0:03:08]} Ne7 {[%emt 0:02:00]} 18. Nd4 {[%emt 0:13:29]} Qh6 {[%emt 0:10:19]} 19. g3 {[%emt 0:01:23]} Bxe5 {[%emt 0:00:07]} 20. Nxe6 {[%emt 0:03:25]} Bxc3 {[%emt 0:00:31]} 21. Nc5 {[%emt 0:01:18]} Kd8 {[%emt 0:01:30]} 22. Qb8+ {[%emt 0:00:56]} Nc8 {[%emt 0:00:05]} 23. Rad1 {[%emt 0:01:46]} Bxd1 {[%emt 0:03:38]} 24. Rxd1 {[%emt 0:00:00]} Ke7 {[%emt 0:00:10]} 25. Qxc7+ {[%emt 0:00:22]} Kf6 {[%emt 0:00:38]} 26. Re1 {[%emt 0:03:56]} Kg6 {[%emt 0:02:32]} 27. Re6+ {[%emt 0:00:44]} Bf6 {[%emt 0:00:08]} 28. Nd7 {[%emt 0:00:22]} Kh5 {[%emt 0:01:24]} 29. Nxf6+ {[%emt 0:00:15]} Kg6 {[%emt 0:00:17]} 30. Ng4+ {[%emt 0:00:09]} Kh5 {[%emt 0:00:05]} 31. Rxh6+ {[%emt 0:00:06]} Kxg4 {[%emt 0:00:04]} 32. f3# {[%emt 0:00:06]} 1-0